[Event "34th MPL National U12G Chess-ch 2022"]
[Site "Mysore"]
[Date "2022.04.10"]
[Round "4.5"]
[White "Aadya Gupta"]
[Black "Arockiaraj Cheryl, Nancee"]
[Result "1-0"]
[ECO "E06"]
[WhiteElo "1218"]
[BlackElo "1244"]
[Annotator "NA RC"]
[PlyCount "163"]
[EventDate "2022.04.09"]
[EventCountry "IND"]
[SourceTitle "playchess.com"]
[Source "ChessBase"]
[SourceQuality "1"]
[TimeControl "5400+30"]

1. d4 {[%emt 0:00:10]} d5 {[%emt 0:00:05]} 2. Nf3 {[%emt 0:00:04]} Nc6 {[%emt 0:00:10]} 3. g3 {[%emt 0:00:08]} Nf6 {[%emt 0:00:15]} 4. Bg2 {[%emt 0:00:02]} e6 {[%emt 0:00:49]} 5. O-O {[%emt 0:00:05]} Be7 {[%emt 0:00:16]} 6. c4 {[%emt 0:00:07]} O-O {[%emt 0:00:14]} 7. Nc3 {[%emt 0:00:03]} b6 {[%emt 0:00:45]} 8. Ne5 {[%emt 0:00:15]} Bb7 {[%emt 0:00:27]} 9. e3 {[%emt 0:00:40]} Bd6 {[%emt 0:02:22]} 10. f4 {[%emt 0:00:30]} Ne7 {[%emt 0:04:17]} 11. b3 {[%emt 0:02:53]} Rb8 {[%emt 0:02:40]} 12. Qc2 {[%emt 0:02:03]} c5 {[%emt 0:02:13]} 13. Nb5 {[%emt 0:00:59]} a6 {[%emt 0:01:10]} 14. Nxd6 {[%emt 0:00:06]} Qxd6 {[%emt 0:00:08]} 15. Rd1 {[%emt 0:02:22]} Rfc8 {[%emt 0:01:45]} 16. Ba3 {[%emt 0:00:54]} Qc7 {[%emt 0:01:28]} 17. Rac1 {[%emt 0:00:57]} Nf5 {[%emt 0:01:43]} 18. Qe2 {[%emt 0:01:20]} dxc4 {[%emt 0:02:00]} 19. dxc5 {[%emt 0:01:16]} Bxg2 {[%emt 0:01:08]} 20. Kxg2 {[%emt 0:00:05]} bxc5 {[%emt 0:00:17]} 21. Rxc4 {[%emt 0:00:37]} Qb7+ {[%emt 0:00:42]} 22. Kg1 {[%emt 0:01:27]} Qb5 {[%emt 0:02:17]} 23. Bb2 {[%emt 0:02:46]} Nd5 {[%emt 0:02:34]} 24. Ng4 {[%emt 0:03:37]} Nb6 {[%emt 0:06:19]} 25. Rc2 {[%emt 0:00:59]} h6 {[%emt 0:02:02]} 26. e4 {[%emt 0:00:55]} Ne7 {[%emt 0:02:32]} 27. Nxh6+ {[%emt 0:02:13]} gxh6 {[%emt 0:04:16]} 28. Qg4+ {[%emt 0:00:15]} Ng6 {[%emt 0:00:31]} 29. f5 {[%emt 0:00:20]} exf5 {[%emt 0:00:55]} 30. exf5 {[%emt 0:00:16]} Qb4 {[%emt 0:00:26]} 31. Qxb4 {[%emt 0:03:06]} cxb4 {[%emt 0:00:07]} 32. Rxc8+ {[%emt 0:00:05]} Nxc8 {[%emt 0:02:03]} 33. fxg6 {[%emt 0:00:11]} fxg6 {[%emt 0:00:24]} 34. Rd7 {[%emt 0:00:50]} Kf8 {[%emt 0:07:09]} 35. Rh7 {[%emt 0:00:39]} h5 {[%emt 0:01:18]} 36. Be5 {[%emt 0:00:19]} Ra8 {[%emt 0:00:28]} 37. Rb7 {[%emt 0:00:14]} a5 {[%emt 0:00:36]} 38. Kf2 {[%emt 0:00:54]} Ke8 {[%emt 0:02:38]} 39. Rg7 {[%emt 0:00:30]} Ne7 {[%emt 0:00:53]} 40. Bd6 {[%emt 0:01:02]} Ra7 {[%emt 0:02:32]} 41. Bxe7 {[%emt 0:00:49]} Rxe7 {[%emt 0:00:33]} 42. Rxg6 {[%emt 0:00:08]} Rc7 {[%emt 0:01:11]} 43. Re6+ {[%emt 0:00:18]} Kf7 {[%emt 0:10:14]} 44. Re5 {[%emt 0:00:09]} Rc2+ {[%emt 0:02:28]} 45. Re2 {[%emt 0:00:34]} Rc5 {[%emt 0:06:04]} 46. Kf3 {[%emt 0:00:16]} Kf6 {[%emt 0:08:12]} 47. Ke4 {[%emt 0:00:21]} Re5+ {[%emt 0:05:14]} 48. Kd3 {[%emt 0:00:08]} Rf5 {[%emt 0:00:25]} 49. Kc4 {[%emt 0:01:17]} Kg5 {[%emt 0:01:15]} 50. h3 {[%emt 0:02:13]} Rf3 {[%emt 0:02:33]} 51. Rg2 {[%emt 0:00:35]} h4 {[%emt 0:00:55]} 52. gxh4+ {[%emt 0:00:40]} Kxh4 {[%emt 0:00:08]} 53. Rg4+ {[%emt 0:00:49]} Kxh3 {[%emt 0:00:14]} 54. Rg5 {[%emt 0:00:03]} Rf4+ {[%emt 0:02:20]} 55. Kd3 {[%emt 0:00:15]} Kh4 {[%emt 0:00:28]} 56. Rxa5 {[%emt 0:00:07]} Kg3 {[%emt 0:00:20]} 57. Re5 {[%emt 0:00:28]} Kg2 {[%emt 0:11:32]} 58. Re4 {[%emt 0:00:24]} Rf3+ {[%emt 0:00:00]} 59. Kd2 {[%emt 0:00:32]} Kg1 {[%emt 0:00:00]} 60. Rxb4 {[%emt 0:01:09]} Rf2+ {[%emt 0:00:00]} 61. Kc3 {[%emt 0:00:03]} Rxa2 {[%emt 0:00:00]} 62. Rf4 {[%emt 0:00:09]} Ra8 {[%emt 0:00:00]} 63. b4 {[%emt 0:00:09]} Kg2 {[%emt 0:00:00]} 64. b5 {[%emt 0:00:12]} Kg3 {[%emt 0:00:00]} 65. Rf6 {[%emt 0:00:06]} Rb8 {[%emt 0:00:00]} 66. Kb4 {[%emt 0:00:45]} Kg4 {[%emt 0:00:00]} 67. Ka5 {[%emt 0:00:20]} Kg5 {[%emt 0:05:00]} 68. Ra6 {[%emt 0:00:37]} Kf5 {[%emt 0:00:00]} 69. b6 {[%emt 0:00:04]} Ke6 {[%emt 0:00:00]} 70. b7+ {[%emt 0:00:09]} Kd7 {[%emt 0:00:00]} 71. Kb6 {[%emt 0:00:04]} Kd8 {[%emt 0:00:00]} 72. Ka7 {[%emt 0:00:10]} Kc7 {[%emt 0:00:00]} 73. Rc6+ {[%emt 0:00:11]} Kxc6 {[%emt 0:03:00]} 74. Kxb8 {[%emt 1:17:02]} Kb6 {[%emt 0:00:00]} 75. Kc8 {[%emt 0:00:00]} Ka5 {[%emt 0:00:00]} 76. b8=Q {[%emt 0:00:00]} Ka4 {[%emt 0:00:00]} 77. Kc7 {[%emt 0:00:00]} Ka3 {[%emt 0:00:00]} 78. Kc6 {[%emt 0:00:00]} Ka2 {[%emt 0:00:00]} 79. Kc5 {[%emt 0:00:00]} Ka1 {[%emt 0:00:00]} 80. Kc4 {[%emt 0:00:00]} Ka2 {[%emt 0:00:00]} 81. Kc3 {[%emt 0:00:00]} Ka1 {[%emt 0:00:00]} 82. Qb2# {[%emt 0:00:00]} 1-0

[Event "34th MPL National U12G Chess-ch 2022"]
[Site "Mysore"]
[Date "2022.04.10"]
[Round "4.6"]
[White "Shreya G Hipparagi"]
[Black "Sakthi Vaishnavi A K"]
[Result "1/2-1/2"]
[ECO "C50"]
[WhiteElo "1552"]
[BlackElo "1009"]
[Annotator "NA RC"]
[PlyCount "112"]
[EventDate "2022.04.09"]
[EventCountry "IND"]
[SourceTitle "playchess.com"]
[Source "ChessBase"]
[SourceQuality "1"]
[TimeControl "5400+30"]

1. e4 {[%emt 0:00:03]} e5 {[%emt 0:00:20]} 2. Nf3 {[%emt 0:00:32]} Nc6 {[%emt 0:00:04]} 3. Bc4 {[%emt 0:00:26]} Nf6 {[%emt 0:00:51]} 4. Nc3 {[%emt 0:02:42]} Bc5 {[%emt 0:00:08]} 5. d3 {[%emt 0:01:12]} h6 {[%emt 0:00:05]} 6. h3 {[%emt 0:01:37]} d6 {[%emt 0:00:06]} 7. O-O {[%emt 0:00:58]} O-O {[%emt 0:00:05]} 8. Na4 {[%emt 0:01:49]} Bb6 {[%emt 0:00:18]} 9. Nxb6 {[%emt 0:00:34]} axb6 {[%emt 0:00:07]} 10. c3 {[%emt 0:00:37]} Na5 {[%emt 0:07:35]} 11. Bb5 {[%emt 0:02:45]} Bd7 {[%emt 0:03:03]} 12. Bxd7 {[%emt 0:01:04]} Qxd7 {[%emt 0:00:05]} 13. Be3 {[%emt 0:04:00]} Nc6 {[%emt 0:00:23]} 14. Nh4 {[%emt 0:05:33]} d5 {[%emt 0:07:26]} 15. f3 {[%emt 0:02:58]} Ne7 {[%emt 0:04:01]} 16. d4 {[%emt 0:02:54]} exd4 {[%emt 0:07:34]} 17. Bxd4 {[%emt 0:05:02]} Nh7 {[%emt 0:04:57]} 18. exd5 {[%emt 0:01:35]} Qxd5 {[%emt 0:02:20]} 19. f4 {[%emt 0:02:30]} Rad8 {[%emt 0:10:07]} 20. Qg4 {[%emt 0:01:56]} f6 {[%emt 0:10:30]} 21. Rae1 {[%emt 0:13:40]} h5 {[%emt 0:06:03]} 22. Qe2 {[%emt 0:09:09]} Nc6 {[%emt 0:01:22]} 23. Rd1 {[%emt 0:06:47]} Rfe8 {[%emt 0:03:03]} 24. Qc2 {[%emt 0:01:06]} Nxd4 {[%emt 0:01:22]} 25. cxd4 {[%emt 0:03:06]} Rd7 {[%emt 0:05:24]} 26. Qg6 {[%emt 0:07:54]} Qe4 {[%emt 0:08:47]} 27. Qxh5 {[%emt 0:03:23]} Rxd4 {[%emt 0:01:34]} 28. Nf3 {[%emt 0:01:57]} Rxd1 {[%emt 0:01:10]} 29. Rxd1 {[%emt 0:00:09]} Qe7 {[%emt 0:05:49]} 30. Kh1 {[%emt 0:03:45]} Qf7 {[%emt 0:00:46]} 31. Qg4 {[%emt 0:03:07]} f5 {[%emt 0:03:48]} 32. Qg3 {[%emt 0:00:27]} Nf6 {[%emt 0:00:14]} 33. b3 {[%emt 0:01:54]} Ne4 {[%emt 0:00:14]} 34. Qh4 {[%emt 0:00:50]} Qf6 {[%emt 0:02:59]} 35. Qxf6 {[%emt 0:00:38]} Nxf6 {[%emt 0:00:06]} 36. Ne5 {[%emt 0:00:15]} Nh5 {[%emt 0:00:32]} 37. Ng6 {[%emt 0:01:45]} Kh7 {[%emt 0:00:36]} 38. Nh4 {[%emt 0:00:08]} Nxf4 {[%emt 0:00:38]} 39. Nxf5 {[%emt 0:00:37]} Re2 {[%emt 0:01:03]} 40. Rd7 {[%emt 0:00:42]} Rxg2 {[%emt 0:00:52]} 41. Rxc7 {[%emt 0:00:17]} Rg5 {[%emt 0:00:11]} 42. Nd6 {[%emt 0:01:28]} Nxh3 {[%emt 0:00:29]} 43. Rxb7 {[%emt 0:00:20]} Nf2+ {[%emt 0:00:23]} 44. Kh2 {[%emt 0:00:08]} Rg6 {[%emt 0:00:44]} 45. Rxb6 {[%emt 0:00:40]} Ne4 {[%emt 0:00:37]} 46. Nc4 {[%emt 0:00:09]} Rxb6 {[%emt 0:00:45]} 47. Nxb6 {[%emt 0:00:07]} Kg6 {[%emt 0:00:07]} 48. a4 {[%emt 0:00:37]} Kf5 {[%emt 0:00:50]} 49. b4 {[%emt 0:00:32]} Nd6 {[%emt 0:01:05]} 50. Kg3 {[%emt 0:01:06]} g5 {[%emt 0:00:23]} 51. a5 {[%emt 0:01:31]} Nb5 {[%emt 0:00:07]} 52. a6 {[%emt 0:00:21]} Ke5 {[%emt 0:01:31]} 53. Nc8 {[%emt 0:00:33]} Kd4 {[%emt 0:00:13]} 54. a7 {[%emt 0:00:48]} Nxa7 {[%emt 0:00:53]} 55. Nxa7 {[%emt 0:00:40]} Kc4 {[%emt 0:00:06]} 56. b5 {[%emt 0:00:50]} Kc5 {[%emt 0:00:14]} 1/2-1/2

[Event "34th MPL National U12G Chess-ch 2022"]
[Site "Mysore"]
[Date "2022.04.11"]
[Round "5.1"]
[White "Aadhya Jain"]
[Black "Kalyani Sirin"]
[Result "1/2-1/2"]
[ECO "C44"]
[WhiteElo "1128"]
[BlackElo "1243"]
[Annotator "NA RC"]
[PlyCount "111"]
[EventDate "2022.04.09"]
[EventCountry "IND"]
[SourceTitle "playchess.com"]
[Source "ChessBase"]
[SourceQuality "1"]
[TimeControl "5400+30"]

1. e4 {[%emt 0:00:07]} e5 {[%emt 0:00:06]} 2. Nf3 {[%emt 0:00:05]} Nc6 {[%emt 0:00:06]} 3. c3 {[%emt 0:00:20]} Nf6 {[%emt 0:00:37]} 4. d4 {[%emt 0:00:10]} exd4 {[%emt 0:02:29]} 5. e5 {[%emt 0:00:52]} Nd5 {[%emt 0:00:20]} 6. cxd4 {[%emt 0:02:53]} Bb4+ {[%emt 0:00:32]} 7. Bd2 {[%emt 0:00:30]} Bxd2+ {[%emt 0:00:31]} 8. Qxd2 {[%emt 0:00:25]} O-O {[%emt 0:01:30]} 9. Bd3 {[%emt 0:02:11]} d6 {[%emt 0:00:48]} 10. exd6 {[%emt 0:16:02]} Re8+ {[%emt 0:01:00]} 11. Be2 {[%emt 0:00:25]} Qxd6 {[%emt 0:01:00]} 12. O-O {[%emt 0:02:12]} Nf4 {[%emt 0:01:19]} 13. Bc4 {[%emt 0:05:57]} Bg4 {[%emt 0:16:35]} 14. Bxf7+ {[%emt 0:02:00]} Kxf7 {[%emt 0:06:57]} 15. Ne5+ {[%emt 0:00:49]} Nxe5 {[%emt 0:00:53]} 16. Qxf4+ {[%emt 0:00:16]} Qf6 {[%emt 0:00:15]} 17. Qxf6+ {[%emt 0:00:14]} Kxf6 {[%emt 0:00:04]} 18. dxe5+ {[%emt 0:00:06]} Rxe5 {[%emt 0:00:07]} 19. Nc3 {[%emt 0:01:25]} Rd8 {[%emt 0:04:33]} 20. f3 {[%emt 0:03:32]} Bf5 {[%emt 0:01:05]} 21. Rad1 {[%emt 0:01:15]} Rxd1 {[%emt 0:08:16]} 22. Rxd1 {[%emt 0:00:15]} c6 {[%emt 0:01:52]} 23. Kf2 {[%emt 0:01:14]} h5 {[%emt 0:00:51]} 24. h3 {[%emt 0:00:56]} g5 {[%emt 0:07:22]} 25. g4 {[%emt 0:08:20]} Bg6 {[%emt 0:06:11]} 26. Rd6+ {[%emt 0:03:42]} Re6 {[%emt 0:00:45]} 27. Rxe6+ {[%emt 0:00:10]} Kxe6 {[%emt 0:00:08]} 28. gxh5 {[%emt 0:00:03]} Bxh5 {[%emt 0:00:26]} 29. Ne4 {[%emt 0:00:05]} Kf5 {[%emt 0:05:15]} 30. Ke3 {[%emt 0:00:46]} b6 {[%emt 0:03:23]} 31. Nd6+ {[%emt 0:01:07]} Ke5 {[%emt 0:01:24]} 32. Ne4 {[%emt 0:06:35]} Kf5 {[%emt 0:02:06]} 33. b4 {[%emt 0:01:36]} c5 {[%emt 0:04:56]} 34. bxc5 {[%emt 0:01:41]} bxc5 {[%emt 0:00:09]} 35. Nxc5 {[%emt 0:00:09]} Bf7 {[%emt 0:00:32]} 36. a4 {[%emt 0:00:19]} a5 {[%emt 0:00:59]} 37. Nb7 {[%emt 0:01:37]} Bb3 {[%emt 0:00:21]} 38. Nxa5 {[%emt 0:00:06]} Bxa4 {[%emt 0:00:09]} 39. Nc4 {[%emt 0:00:12]} Bd7 {[%emt 0:00:35]} 40. Nd6+ {[%emt 0:01:37]} Ke5 {[%emt 0:00:21]} 41. Ne4 {[%emt 0:00:20]} Bxh3 {[%emt 0:00:49]} 42. Nxg5 {[%emt 0:00:08]} Bf5 {[%emt 0:00:30]} 43. Nf7+ {[%emt 0:00:24]} Kf6 {[%emt 0:00:09]} 44. Kf4 {[%emt 0:00:31]} Bb1 {[%emt 0:00:22]} 45. Nh6 {[%emt 0:00:41]} Bc2 {[%emt 0:01:18]} 46. Ng4+ {[%emt 0:00:12]} Kg6 {[%emt 0:00:33]} 47. Ne3 {[%emt 0:00:25]} Ba4 {[%emt 0:01:10]} 48. Ke5 {[%emt 0:00:10]} Bc6 {[%emt 0:00:56]} 49. f4 {[%emt 0:00:09]} Bd7 {[%emt 0:00:15]} 50. Nd5 {[%emt 0:00:35]} Kf7 {[%emt 0:00:33]} 51. Ne3 {[%emt 0:00:51]} Be6 {[%emt 0:00:45]} 52. Nf5 {[%emt 0:00:20]} Bd7 {[%emt 0:00:49]} 53. Nh6+ {[%emt 0:01:39]} Kg7 {[%emt 0:01:07]} 54. Kd6 {[%emt 0:00:11]} Bh3 {[%emt 0:00:12]} 55. f5 {[%emt 0:00:10]} Bxf5 {[%emt 0:00:05]} 56. Nxf5+ {[%emt 0:00:05]} 1/2-1/2

[Event "34th MPL National U12G Chess-ch 2022"]
[Site "Mysore"]
[Date "2022.04.11"]
[Round "5.2"]
[White "Prishita Gupta"]
[Black "Aadya Gupta"]
[Result "1/2-1/2"]
[ECO "D11"]
[WhiteElo "1412"]
[BlackElo "1218"]
[Annotator "NA RC"]
[PlyCount "164"]
[EventDate "2022.04.09"]
[EventCountry "IND"]
[SourceTitle "playchess.com"]
[Source "ChessBase"]
[SourceQuality "1"]
[TimeControl "5400+30"]

1. d4 {[%emt 0:00:30]} d5 {[%emt 0:00:05]} 2. g3 {[%emt 0:00:03]} Bf5 {[%emt 0:00:04]} 3. Bg2 {[%emt 0:00:11]} c6 {[%emt 0:00:04]} 4. c4 {[%emt 0:00:05]} e6 {[%emt 0:00:03]} 5. Nc3 {[%emt 0:00:14]} Nf6 {[%emt 1:32:44]} 6. Nf3 {[%emt 0:00:06]} h6 {[%emt 0:00:00]} 7. Bf4 {[%emt 0:00:08]} Nbd7 {[%emt 0:00:00]} 8. Rc1 {[%emt 0:00:21]} Be7 {[%emt 0:00:00]} 9. O-O {[%emt 0:00:45]} O-O {[%emt 0:00:00]} 10. cxd5 {[%emt 0:00:30]} exd5 {[%emt 0:00:00]} 11. Ne5 {[%emt 0:00:10]} Re8 {[%emt 0:00:00]} 12. f3 {[%emt 0:00:52]} Nxe5 {[%emt 0:00:00]} 13. Bxe5 {[%emt 0:00:16]} Nd7 {[%emt 0:00:00]} 14. Bf4 {[%emt 0:00:20]} Nb6 {[%emt 0:00:00]} 15. e4 {[%emt 0:00:23]} Bh7 {[%emt 0:00:00]} 16. Re1 {[%emt 0:01:17]} Bb4 {[%emt 0:00:00]} 17. a3 {[%emt 0:02:17]} Bxc3 {[%emt 0:00:00]} 18. Rxc3 {[%emt 0:00:40]} Nc4 {[%emt 0:00:00]} 19. Bc1 {[%emt 0:00:21]} Qb6 {[%emt 0:00:00]} 20. b3 {[%emt 0:00:36]} Nd6 {[%emt 0:00:00]} 21. Rce3 {[%emt 0:00:48]} Rad8 {[%emt 0:00:00]} 22. Bb2 {[%emt 0:01:21]} a5 {[%emt 0:00:00]} 23. a4 {[%emt 0:01:06]} Rd7 {[%emt 0:00:00]} 24. Ba3 {[%emt 0:00:40]} Bg6 {[%emt 0:00:00]} 25. Bh3 {[%emt 0:01:05]} Rdd8 {[%emt 0:00:00]} 26. Bxd6 {[%emt 0:00:27]} Rxd6 {[%emt 0:00:00]} 27. e5 {[%emt 0:00:15]} Rdd8 {[%emt 0:00:00]} 28. e6 {[%emt 0:02:48]} fxe6 {[%emt 0:00:00]} 29. Bxe6+ {[%emt 0:00:24]} Bf7 {[%emt 0:00:00]} 30. Bxf7+ {[%emt 0:03:00]} Kxf7 {[%emt 0:00:00]} 31. Qd3 {[%emt 0:00:30]} Rxe3 {[%emt 0:00:00]} 32. Rxe3 {[%emt 0:00:05]} Kg8 {[%emt 0:00:00]} 33. Re7 {[%emt 0:01:36]} Qb4 {[%emt 0:00:00]} 34. Qe3 {[%emt 0:00:15]} Rf8 {[%emt 0:00:00]} 35. Kg2 {[%emt 0:02:18]} Rf7 {[%emt 0:00:00]} 36. Re6 {[%emt 0:01:38]} Qa3 {[%emt 0:00:00]} 37. g4 {[%emt 0:02:16]} Qb2+ {[%emt 0:00:00]} 38. Kg3 {[%emt 0:00:09]} Qc2 {[%emt 0:00:00]} 39. h4 {[%emt 0:00:43]} b5 {[%emt 0:00:00]} 40. g5 {[%emt 0:00:36]} hxg5 {[%emt 0:00:00]} 41. hxg5 {[%emt 0:00:23]} Rf8 {[%emt 0:00:00]} 42. Rd6 {[%emt 0:02:16]} Qf5 {[%emt 0:00:00]} 43. Rxc6 {[%emt 0:01:01]} bxa4 {[%emt 0:00:00]} 44. bxa4 {[%emt 0:00:04]} Kh8 {[%emt 0:00:00]} 45. f4 {[%emt 0:01:54]} Rb8 {[%emt 0:00:00]} 46. Qf3 {[%emt 0:04:18]} Kg8 {[%emt 0:00:00]} 47. Rd6 {[%emt 0:01:05]} Qb1 {[%emt 0:00:00]} 48. Qxd5+ {[%emt 0:00:47]} Kh8 {[%emt 0:00:00]} 49. Re6 {[%emt 0:11:03]} Qg1+ {[%emt 0:00:00]} 50. Kh4 {[%emt 0:00:26]} Qh2+ {[%emt 0:00:00]} 51. Kg4 {[%emt 0:00:05]} Qg1+ {[%emt 0:00:00]} 52. Kf5 {[%emt 0:00:04]} Rf8+ {[%emt 0:00:00]} 53. Ke5 {[%emt 0:00:57]} Qb1 {[%emt 0:00:00]} 54. Qe4 {[%emt 0:04:20]} Qb8+ {[%emt 0:00:00]} 55. Kd5 {[%emt 0:00:05]} Rd8+ {[%emt 0:00:00]} 56. Kc4 {[%emt 0:00:45]} Rc8+ {[%emt 0:00:00]} 57. Rc6 {[%emt 0:00:29]} Qb4+ {[%emt 0:00:00]} 58. Kd5 {[%emt 0:00:31]} Rd8+ {[%emt 0:00:00]} 59. Ke5 {[%emt 0:00:42]} Rf8 {[%emt 0:00:42]} 60. Qh1+ {[%emt 0:04:11]} Kg8 {[%emt 0:00:08]} 61. Qd5+ {[%emt 0:00:37]} Kh8 {[%emt 0:00:07]} 62. Re6 {[%emt 0:06:02]} Qb1 {[%emt 0:01:46]} 63. Qe4 {[%emt 0:00:45]} Qb8+ {[%emt 0:00:12]} 64. Kd5 {[%emt 0:00:12]} Qb3+ {[%emt 0:01:20]} 65. Kd6 {[%emt 0:00:59]} Qb8+ {[%emt 0:01:00]} 66. Kc5 {[%emt 0:00:11]} Qb4+ {[%emt 0:00:18]} 67. Kd5 {[%emt 0:01:40]} Qb3+ {[%emt 0:00:23]} 68. Kc6 {[%emt 0:01:32]} Qxa4+ {[%emt 0:01:27]} 69. Kc7 {[%emt 0:02:23]} Rf7+ {[%emt 0:00:53]} 70. Kb8 {[%emt 0:00:46]} Qb5+ {[%emt 0:01:22]} 71. Ka8 {[%emt 0:00:33]} Rf8+ {[%emt 0:01:15]} 72. Ka7 {[%emt 0:00:11]} Qd7+ {[%emt 0:01:21]} 73. Ka6 {[%emt 0:00:04]} Qc8+ {[%emt 0:03:57]} 74. Kxa5 {[%emt 0:00:27]} Qc3+ {[%emt 0:00:20]} 75. Ka6 {[%emt 0:01:28]} Qc4+ {[%emt 0:01:26]} 76. Ka7 {[%emt 0:00:37]} Rf7+ {[%emt 0:02:26]} 77. Re7 {[%emt 0:02:38]} Qa4+ {[%emt 0:00:51]} 78. Kb8 {[%emt 0:00:10]} Rf8+ {[%emt 0:00:16]} 79. Kc7 {[%emt 0:00:22]} Qa5+ {[%emt 0:01:03]} 80. Kd6 {[%emt 0:01:34]} Qb6+ {[%emt 0:00:19]} 81. Ke5 {[%emt 0:00:10]} Qb8+ {[%emt 0:00:24]} 82. Kd5 {[%emt 0:00:14]} Qb5+ {[%emt 0:00:03]} 1/2-1/2

[Event "34th MPL National U12G Chess-ch 2022"]
[Site "Mysore"]
[Date "2022.04.11"]
[Round "5.3"]
[White "Shriyana S Mallya"]
[Black "Sherali Pattnaik"]
[Result "1-0"]
[ECO "B23"]
[WhiteElo "1277"]
[BlackElo "1209"]
[Annotator "NA RC"]
[PlyCount "105"]
[EventDate "2022.04.09"]
[EventCountry "IND"]
[SourceTitle "playchess.com"]
[Source "ChessBase"]
[SourceQuality "1"]
[TimeControl "5400+30"]

1. e4 {[%emt 0:00:06]} c5 {[%emt 0:00:03]} 2. Nc3 {[%emt 0:00:16]} e6 {[%emt 0:00:13]} 3. f4 {[%emt 0:00:21]} d5 {[%emt 0:00:03]} 4. exd5 {[%emt 0:02:11]} exd5 {[%emt 0:00:05]} 5. Nf3 {[%emt 0:01:08]} Nf6 {[%emt 0:00:41]} 6. Bb5+ {[%emt 0:01:38]} Nc6 {[%emt 0:00:16]} 7. O-O {[%emt 0:01:28]} Be7 {[%emt 0:00:36]} 8. Ne5 {[%emt 0:03:03]} Bd7 {[%emt 0:00:26]} 9. Bxc6 {[%emt 0:03:20]} Bxc6 {[%emt 0:00:04]} 10. d4 {[%emt 0:04:12]} O-O {[%emt 0:02:44]} 11. Be3 {[%emt 0:03:56]} c4 {[%emt 0:12:10]} 12. a3 {[%emt 0:05:18]} Rc8 {[%emt 0:06:38]} 13. Ng4 {[%emt 0:13:23]} Re8 {[%emt 0:05:57]} 14. Nxf6+ {[%emt 0:04:47]} Bxf6 {[%emt 0:00:01]} 15. Qd2 {[%emt 0:00:22]} Qb6 {[%emt 0:01:06]} 16. Kh1 {[%emt 0:01:24]} Re7 {[%emt 0:08:52]} 17. f5 {[%emt 0:15:50]} Rce8 {[%emt 0:10:26]} 18. Bg5 {[%emt 0:01:09]} Bxg5 {[%emt 0:14:34]} 19. Qxg5 {[%emt 0:00:24]} f6 {[%emt 0:00:03]} 20. Qd2 {[%emt 0:01:56]} Kf7 {[%emt 0:03:37]} 21. h3 {[%emt 0:01:52]} Qc7 {[%emt 0:03:13]} 22. Rf3 {[%emt 0:06:12]} b5 {[%emt 0:02:24]} 23. b4 {[%emt 0:02:02]} Qd6 {[%emt 0:06:23]} 24. Rb1 {[%emt 0:07:15]} a6 {[%emt 0:00:24]} 25. g3 {[%emt 0:02:44]} Qc7 {[%emt 0:01:11]} 26. Kg2 {[%emt 0:01:00]} Qb6 {[%emt 0:00:06]} 27. Kf2 {[%emt 0:06:25]} Qc7 {[%emt 0:05:13]} 28. Rf1 {[%emt 0:00:52]} Qd7 {[%emt 0:00:50]} 29. Kg2 {[%emt 0:00:13]} Qa7 {[%emt 0:00:32]} 30. R1f2 {[%emt 0:01:07]} a5 {[%emt 0:00:50]} 31. Ne2 {[%emt 0:01:59]} Re4 {[%emt 0:00:52]} 32. c3 {[%emt 0:03:08]} axb4 {[%emt 0:00:31]} 33. axb4 {[%emt 0:00:09]} Qd7 {[%emt 0:00:03]} 34. g4 {[%emt 0:00:50]} Qd6 {[%emt 0:02:15]} 35. Nf4 {[%emt 0:01:44]} Bd7 {[%emt 0:00:00]} 36. Ne2 {[%emt 0:02:09]} Bc6 {[%emt 0:04:27]} 37. Ng3 {[%emt 0:01:05]} Qe7 {[%emt 0:00:21]} 38. Nxe4 {[%emt 0:00:16]} dxe4 {[%emt 0:00:01]} 39. Re3 {[%emt 0:00:01]} Bd5 {[%emt 0:00:18]} 40. Rf1 {[%emt 0:00:27]} Ra8 {[%emt 0:00:16]} 41. Qe2 {[%emt 0:00:17]} Qd6 {[%emt 0:00:48]} 42. h4 {[%emt 0:00:59]} Qa6 {[%emt 0:02:47]} 43. Rf2 {[%emt 0:01:05]} Rg8 {[%emt 0:02:20]} 44. g5 {[%emt 0:00:33]} fxg5 {[%emt 0:02:46]} 45. Qh5+ {[%emt 0:00:23]} Kf8 {[%emt 0:00:19]} 46. hxg5 {[%emt 0:00:28]} h6 {[%emt 0:01:02]} 47. Qh2 {[%emt 0:00:40]} hxg5 {[%emt 0:00:56]} 48. Qb8+ {[%emt 0:00:04]} Kf7 {[%emt 0:00:03]} 49. Qc7+ {[%emt 0:00:07]} Ke8 {[%emt 0:01:17]} 50. Qe5+ {[%emt 0:00:09]} Kf8 {[%emt 0:00:04]} 51. Qxd5 {[%emt 0:00:09]} Qh6 {[%emt 0:00:10]} 52. Qxe4 {[%emt 0:01:12]} g4 {[%emt 0:00:04]} 53. Qe8# {[%emt 0:00:04]} 1-0

[Event "34th MPL National U12G Chess-ch 2022"]
[Site "Mysore"]
[Date "2022.04.11"]
[Round "5.5"]
[White "Shubhi Gupta"]
[Black "Nivedita V C"]
[Result "1-0"]
[ECO "A80"]
[WhiteElo "1434"]
[BlackElo "1200"]
[Annotator "NA RC"]
[PlyCount "73"]
[EventDate "2022.04.09"]
[EventCountry "IND"]
[SourceTitle "playchess.com"]
[Source "ChessBase"]
[SourceQuality "1"]
[TimeControl "5400+30"]

1. d4 {[%emt 0:00:18]} f5 {[%emt 0:00:05]} 2. Bg5 {[%emt 0:01:41]} g6 {[%emt 0:03:23]} 3. Nd2 {[%emt 0:01:06]} Bg7 {[%emt 0:01:28]} 4. e4 {[%emt 0:01:55]} d6 {[%emt 0:02:40]} 5. c3 {[%emt 0:02:20]} Nf6 {[%emt 0:08:21]} 6. Bd3 {[%emt 0:02:24]} fxe4 {[%emt 0:02:38]} 7. Nxe4 {[%emt 0:01:51]} O-O {[%emt 0:01:11]} 8. Qd2 {[%emt 0:03:24]} d5 {[%emt 0:10:56]} 9. Nxf6+ {[%emt 0:02:39]} exf6 {[%emt 0:00:13]} 10. Be3 {[%emt 0:00:47]} Nc6 {[%emt 0:02:07]} 11. h4 {[%emt 0:01:59]} Qe8 {[%emt 0:09:51]} 12. Ne2 {[%emt 0:03:53]} Ne7 {[%emt 0:02:13]} 13. Ng3 {[%emt 0:03:27]} h6 {[%emt 0:03:59]} 14. O-O-O {[%emt 0:01:54]} h5 {[%emt 0:01:41]} 15. Rde1 {[%emt 0:01:35]} Bd7 {[%emt 0:04:14]} 16. Bf4 {[%emt 0:02:34]} Qd8 {[%emt 0:02:54]} 17. Bh6 {[%emt 0:02:59]} Kh7 {[%emt 0:01:48]} 18. Bf4 {[%emt 0:00:29]} Kg8 {[%emt 0:00:22]} 19. Rxe7 {[%emt 0:02:12]} Qxe7 {[%emt 0:02:33]} 20. Bxg6 {[%emt 0:00:46]} Be8 {[%emt 0:02:45]} 21. Re1 {[%emt 0:01:13]} Qxe1+ {[%emt 0:00:58]} 22. Qxe1 {[%emt 0:00:25]} Bxg6 {[%emt 0:00:05]} 23. Qe6+ {[%emt 0:01:01]} Kh7 {[%emt 0:02:37]} 24. Qxd5 {[%emt 0:00:39]} Rfe8 {[%emt 0:01:08]} 25. Be3 {[%emt 0:03:05]} c6 {[%emt 0:04:50]} 26. Qf3 {[%emt 0:01:13]} Re6 {[%emt 0:28:30]} 27. Nxh5 {[%emt 0:00:52]} Rae8 {[%emt 0:00:00]} 28. Nxg7 {[%emt 0:00:32]} Kxg7 {[%emt 0:00:00]} 29. g4 {[%emt 0:02:02]} Rh8 {[%emt 0:00:00]} 30. h5 {[%emt 0:00:22]} Be4 {[%emt 0:00:00]} 31. Qh3 {[%emt 0:00:42]} Rh7 {[%emt 0:00:00]} 32. g5 {[%emt 0:01:27]} f5 {[%emt 0:00:00]} 33. Qh2 {[%emt 0:01:05]} Re7 {[%emt 0:00:00]} 34. Qd6 {[%emt 0:00:44]} Kf8 {[%emt 0:00:00]} 35. Qd8+ {[%emt 0:01:17]} Re8 {[%emt 0:00:00]} 36. Qf6+ {[%emt 0:00:15]} Rf7 {[%emt 0:00:00]} 37. Qd6+ {[%emt 0:00:11]} 1-0